bitfinex/quotes_BTCUSD_20250614
["timestamp","ask_amount","ask_price","bid_price","bid_amount"]
[1749907415528,0.01140426,105020.0,105010.0,0.43929419]
[1749907415761,0.02092553,105020.0,105010.0,0.43929419]
[1749907418403,0.02092543,105020.0,105010.0,0.43929419]
[1749907419082,0.03044679,105020.0,105010.0,0.43929419]
[1749907419501,0.0304467,105020.0,105010.0,0.43929419]
[1749907419919,0.02092543,105020.0,105010.0,0.43929419]
[1749907421186,0.03044679,105020.0,105010.0,0.43929419]
[1749907422510,0.05901159,105020.0,105010.0,0.43929419]
[1749907422747,0.73230822,105020.0,105010.0,0.43929419]
[1749907423382,0.73230813,105020.0,105010.0,0.43929419]
[1749907423797,0.72278696,105020.0,105010.0,0.43929419]
[1749907424005,0.73230877,105020.0,105010.0,0.43929419]
[1749907424437,0.72278705,105020.0,105010.0,0.43929419]
[1749907424642,0.72278696,105020.0,105010.0,0.43929419]
[1749907424850,0.73230877,105020.0,105010.0,0.43929419]
[1749907428771,0.73230931,105020.0,105010.0,0.43929419]
[1749907428982,0.91322822,105020.0,105010.0,0.42977211]
[1749907429204,0.91322822,105020.0,105010.0,0.43929455]
[1749907430046,0.91322822,105020.0,105010.0,0.439294]
[1749907430492,0.91322822,105020.0,105010.0,0.42977165]
[1749907430703,0.91322822,105020.0,105010.0,0.439294]
[1749907430935,0.9037065,105020.0,105010.0,0.18252319]
[1749907431160,0.89418469,105020.0,105010.0,0.18252319]
[1749907431384,0.89418469,105020.0,105010.0,0.00914319]
[1749907431612,0.91698884,105020.0,105010.0,0.02759932]
[1749907431832,0.91698884,105020.0,105010.0,0.24588018]
[1749907432049,0.91698884,105020.0,105010.0,0.25540291]
[1749907432297,0.89418469,105020.0,105010.0,0.25540291]
[1749907432517,0.89418469,105020.0,105010.0,0.25540287]
[1749907432730,0.89418469,105020.0,105010.0,0.25540286]
[1749907432950,0.91698778,105020.0,105010.0,0.24588014]
[1749907433216,0.89418469,105020.0,105010.0,0.24588032]
[1749907433426,0.89418469,105020.0,105010.0,0.25540291]
[1749907433649,0.89418469,105020.0,105010.0,0.25540278]
[1749907433866,0.89418469,105020.0,105010.0,0.24646967]
[1749907434075,0.89418469,105020.0,105010.0,0.23694695]
[1749907434290,0.89418469,105020.0,105010.0,0.24588009]
[1749907434520,0.89418469,105020.0,105010.0,0.23694695]
[1749907434733,0.89418469,105020.0,105010.0,0.23635722]
[1749907434919,0.88466279,105020.0,105010.0,0.23635731]
[1749907435336,0.9694227,105020.0,105010.0,0.24588012]
[1749907435546,0.9694227,105020.0,105010.0,0.24588011]
[1749907436410,0.9694227,105020.0,105010.0,0.23694695]
[1749907436622,0.9694227,105020.0,105010.0,0.24588011]
[1749907437524,0.97894442,105020.0,105010.0,0.33601081]
[1749907437739,0.84758768,105020.0,105010.0,0.34612244]
[1749907438188,0.85710967,105020.0,105010.0,0.34612244]
[1749907438685,1.03802759,105020.0,105010.0,0.33660018]
[1749907438906,1.04754958,105020.0,105010.0,0.34612262]
[1749907439354,0.28949304,105020.0,105010.0,0.34612262]
[1749907439570,0.28949304,105020.0,105010.0,0.28321455]
[1749907439789,0.28949304,105020.0,105010.0,0.283214]
[1749907441120,0.27997159,105020.0,105010.0,0.27369165]
[1749907441338,0.27044987,105020.0,105010.0,0.27369165]
[1749907441766,0.0609658,105020.0,105010.0,0.34513852]
[1749907441984,0.08000888,105020.0,105010.0,0.34513852]
[1749907442220,0.08953078,105020.0,105010.0,0.34513852]
[1749907443707,0.28949268,105020.0,105010.0,0.33561626]
[1749907443922,0.27997141,105020.0,105010.0,0.27369165]
[1749907445957,0.08000951,105020.0,105010.0,0.28321391]
[1749907446151,0.27997141,105020.0,105010.0,0.27369165]
[1749907447192,0.27997141,105020.0,105010.0,0.283214]
[1749907447824,0.08000879,105020.0,105010.0,0.28321345]
[1749907448033,0.06096562,105020.0,105010.0,0.34609025]
[1749907449749,0.07048707,105020.0,105010.0,0.34609025]
[1749907449965,0.06096562,105020.0,105010.0,0.34609025]
[1749907452901,0.07048716,105020.0,105010.0,0.34609025]
[1749907453026,0.06096562,105020.0,105010.0,0.34609025]
[1749907453248,0.06096543,105020.0,105010.0,0.34609025]
[1749907453691,0.07048679,105020.0,105010.0,0.34609025]
[1749907454333,0.06096543,105020.0,105010.0,0.34609025]
[1749907454557,0.07048679,105020.0,105010.0,0.34609025]
[1749907455188,0.03044679,105020.0,105010.0,0.34609025]
[1749907455402,0.05144426,105020.0,105010.0,0.34609025]
[1749907455614,0.06096543,105020.0,105010.0,0.34609025]
[1749907456500,0.07048679,105020.0,105010.0,0.34609025]
[1749907456717,0.06096543,105020.0,105010.0,0.34609025]
[1749907456933,0.05144426,105020.0,105010.0,0.34609025]
[1749907457346,0.06096553,105020.0,105010.0,0.34609025]
[1749907459098,0.07048698,105020.0,105010.0,0.34609025]
[1749907459310,0.82836515,105020.0,105010.0,0.34609025]
[1749907460376,0.8188437,105020.0,105010.0,0.34609025]
[1749907461028,0.7788037,105020.0,105010.0,0.34609025]
[1749907461529,0.78832515,105020.0,105010.0,0.34609025]
[1749907461955,0.7788037,105020.0,105010.0,0.34609025]
[1749907462165,0.78832506,105020.0,105010.0,0.34609025]
[1749907464704,0.79784651,105020.0,105010.0,0.34609025]
[1749907466422,0.03996834,105020.0,105010.0,0.34609025]
[1749907466626,0.79784651,105020.0,105010.0,0.34609025]
[1749907469526,0.78832506,105020.0,105010.0,0.34609025]
[1749907471596,0.7978466,105020.0,105010.0,0.34609025]
[1749907471866,0.78832506,105020.0,105010.0,0.34609025]
[1749907472088,0.03044689,105020.0,105010.0,0.34609025]
[1749907472317,0.76928243,105020.0,105010.0,0.34609025]
[1749907472534,0.78832487,105020.0,105010.0,0.34609025]
[1749907473621,0.01140426,105020.0,105010.0,1.20021018]
[1749907482267,0.01140426,105020.0,105010.0,0.37945521]
[1749907482489,0.01140426,105020.0,105010.0,1.13733338]
[1749907487017,0.01140426,105020.0,105010.0,1.50593638]
[1749907491696,0.86237317,105050.0,105040.0,0.21896337]
[1749907491913,0.86237317,105050.0,105040.0,0.37396337]
[1749907492794,0.86237317,105050.0,105040.0,0.38348291]
[1749907493442,0.86337317,105050.0,105040.0,0.38348291]
[1749907494305,0.86237317,105050.0,105040.0,0.38348291]
[1749907494544,0.86237317,105050.0,105040.0,0.38448291]
[1749907494775,0.86237317,105050.0,105040.0,0.38548291]
[1749907495423,1.0527587,105050.0,105040.0,0.37596337]
[1749907496557,0.8528539,105050.0,105040.0,0.37596337]
[1749907496772,0.86237317,105050.0,105040.0,0.37596337]
[1749907497437,1.0527587,105050.0,105040.0,0.37596337]
[1749907497885,1.04323997,105050.0,105040.0,0.37596356]
[1749907498097,1.04323997,105050.0,105040.0,0.38548328]
[1749907498748,1.03372115,105050.0,105040.0,0.002]
[1749907498971,1.13495137,105050.0,105040.0,0.002]
[1749907499198,1.03880215,105050.0,105040.0,0.002]
[1749907499424,1.06159915,105050.0,105040.0,0.002]
[1749907501217,1.33280091,105050.0,105040.0,0.002]
[1749907501439,7.7091989,105050.0,105040.0,0.002]
[1749907501657,7.81988897,105050.0,105040.0,0.002]
[1749907502587,0.24450448,105030.0,105020.0,0.21900339]
[1749907502797,1.62132447,105030.0,105020.0,0.21900339]
[1749907503447,0.77926587,105030.0,105020.0,0.19996004]
[1749907503670,0.7697456,105030.0,105020.0,0.21900375]
[1749907503884,0.7697456,105030.0,105020.0,0.2410471]
[1749907504111,0.7697456,105030.0,105020.0,0.2430471]
[1749907504334,0.7697456,105030.0,105020.0,0.24304665]
[1749907505018,0.76022506,105030.0,105020.0,0.21448176]
[1749907505239,0.76022506,105030.0,105020.0,0.22400339]
[1749907505676,0.76022506,105030.0,105020.0,0.21448176]
[1749907505896,0.76022506,105030.0,105020.0,0.23352511]
[1749907506871,0.04662388,105030.0,105020.0,0.23352511]
[1749907507102,0.71384252,105030.0,105020.0,0.31855511]
[1749907507347,0.76336351,105030.0,105020.0,0.31855511]
[1749907507812,0.76336351,105030.0,105020.0,0.25904647]
[1749907508271,0.72336351,105030.0,105020.0,0.25904647]
[1749907508499,0.75384252,105030.0,105020.0,0.27504647]
[1749907508760,0.95378538,105030.0,105020.0,0.25904665]
[1749907508977,0.95378538,105030.0,105020.0,0.24952475]
[1749907509199,0.76984306,105030.0,105020.0,0.23352475]
[1749907509419,0.76032198,105030.0,105020.0,0.24304575]
[1749907509634,0.75384297,105030.0,105020.0,0.25984575]
[1749907510500,0.75384297,105030.0,105020.0,0.32198645]
[1749907510725,0.05158253,105030.0,105020.0,0.32198645]
[1749907510944,0.0801437,105030.0,105020.0,0.33758645]
[1749907511181,0.05158253,105030.0,105020.0,0.33758645]
[1749907511401,0.05158253,105030.0,105020.0,0.43382821]
[1749907512942,0.0611028,105030.0,105020.0,0.43382821]
[1749907513158,0.05158253,105030.0,105020.0,0.43382821]
[1749907513371,0.0611028,105030.0,105020.0,0.33758645]
[1749907513595,0.07062325,105030.0,105020.0,0.33758645]
[1749907514085,0.0611028,105030.0,105020.0,0.33758645]
[1749907514944,0.08014379,105030.0,105020.0,0.33758645]
[1749907515203,0.07062316,105030.0,105020.0,0.33758645]
[1749907516928,0.0611028,105030.0,105020.0,0.33758645]
[1749907517147,0.07062325,105030.0,105020.0,0.33758645]
[1749907517831,0.9537843,105030.0,105020.0,0.2312814]
[1749907518049,0.77288351,105030.0,105020.0,0.40528421]
[1749907518951,0.96330529,105030.0,105020.0,0.40528421]
[1749907519439,0.95044394,105030.0,105020.0,0.15996]
[1749907519921,0.94092304,105030.0,105020.0,0.15996]
[1749907521089,0.94092304,105030.0,105020.0,0.35992181]
[1749907521314,0.94092304,105030.0,105020.0,0.20496181]
[1749907521543,0.94092304,105030.0,105020.0,0.24993702]
[1749907521994,0.94092304,105030.0,105020.0,0.20496181]
[1749907522213,0.94092304,105030.0,105020.0,0.20496172]
[1749907526150,0.88522304,105030.0,105020.0,0.20496172]
[1749907526386,0.94426484,105030.0,105020.0,0.23940489]
[1749907526616,0.94426484,105030.0,105020.0,0.22988335]
[1749907527751,0.94426484,105030.0,105020.0,0.23940489]
[1749907528689,0.94426484,105030.0,105020.0,0.24892634]
[1749907528915,0.75384234,105030.0,105020.0,0.2584477]
[1749907529129,0.76336333,105030.0,105020.0,0.2584477]
[1749907529790,0.77288441,105030.0,105020.0,0.2584477]
[1749907530638,0.96330619,105030.0,105020.0,0.23940489]
[1749907530885,0.95378574,105030.0,105020.0,0.23940489]
[1749907531942,0.95378574,105030.0,105020.0,0.24892634]
[1749907532159,0.94426502,105030.0,105020.0,0.22988335]
[1749907537987,0.94426502,105030.0,105020.0,0.0204]
[1749907538207,0.96375601,105030.0,105020.0,0.005]
[1749907539091,1.07999777,105030.0,105020.0,0.005]
[1749907539305,1.09279777,105030.0,105020.0,0.005]
[1749907539988,1.43279777,105030.0,105020.0,0.005]
[1749907541568,1.41999777,105030.0,105020.0,0.005]
[1749907546417,1.57487777,105030.0,105020.0,0.005]
[1749907547319,1.57487515,105030.0,105020.0,0.005]
[1749907548408,1.55917515,105030.0,105020.0,0.021]
[1749907548623,1.40425515,105030.0,105020.0,0.021]
[1749907552132,1.55917515,105030.0,105020.0,0.021]
[1749907554150,1.40425515,105030.0,105020.0,0.021]
[1749907555436,2.40147019,105030.0,105020.0,0.021]
[1749907555679,2.43048269,105030.0,105020.0,0.021]
[1749907556096,2.27556269,105030.0,105020.0,0.021]
[1749907564674,2.43048269,105030.0,105020.0,0.021]
[1749907568013,2.43050219,105030.0,105020.0,0.021]
[1749907568456,2.4590644,105030.0,105020.0,0.021]
[1749907569311,2.45907396,105030.0,105020.0,0.021]
[1749907571385,2.45907396,105030.0,105020.0,0.0371]
[1749907572872,2.45907396,105030.0,105020.0,0.021]
[1749907580967,2.24754857,105030.0,105020.0,0.021]
[1749907581182,2.40940283,105030.0,105020.0,0.021]
[1749907583100,0.10134732,105030.0,105020.0,0.2562048]
[1749907583314,1.19553123,105030.0,105020.0,0.2562048]
[1749907583526,1.4183281,105030.0,105020.0,0.24668344]
[1749907584155,1.40880756,105030.0,105020.0,0.24668344]
[1749907586728,1.40880756,105030.0,105020.0,0.25620498]
[1749907586943,1.40880756,105030.0,105020.0,0.26572643]
[1749907588835,1.21838578,105030.0,105020.0,0.26572643]
[1749907589091,1.40880756,105030.0,105020.0,0.26572643]
[1749907590207,1.40880756,105030.0,105020.0,0.24668344]
[1749907590633,2.16680395,105030.0,105020.0,0.24668344]
[1749907592418,2.16680395,105030.0,105020.0,0.25620489]
[1749907594403,2.16680395,105030.0,105020.0,0.24668344]
[1749907595268,2.15728314,105030.0,105020.0,0.24668344]
[1749907598491,2.15728314,105030.0,105020.0,0.24668362]
[1749907598706,2.15728314,105030.0,105020.0,0.25620534]
[1749907599166,2.13824107,105030.0,105020.0,0.0372]
[1749907599408,2.13824107,105030.0,105020.0,0.2466838]
[1749907599835,2.13725316,105030.0,105020.0,0.2466838]
[1749907602981,2.13725316,105030.0,105020.0,0.2371619]
[1749907603196,2.13725316,105030.0,105020.0,0.0372]
[1749907603831,2.13725316,105030.0,105020.0,0.04672199]
[1749907604282,2.13725316,105030.0,105020.0,0.2371619]
[1749907605362,2.13725316,105030.0,105020.0,0.24668371]
[1749907605578,2.13725316,105030.0,105020.0,0.2371619]
[1749907606047,2.13725316,105030.0,105020.0,0.25620552]
[1749907606680,2.13725316,105030.0,105020.0,0.2466838]
[1749907607732,2.10681415,105030.0,105020.0,0.25620561]
[1749907607950,1.39825848,105030.0,105020.0,0.26572724]
[1749907608139,1.39825848,105030.0,105020.0,0.27524878]
[1749907608788,1.39825848,105030.0,105020.0,0.26572724]
[1749907611285,1.39825848,105030.0,105020.0,0.27524878]
[1749907612093,1.1208504,105030.0,105020.0,0.33732106]
[1749907612300,1.15695738,105030.0,105020.0,0.33732106]
[1749907612507,1.15695729,105030.0,105020.0,0.33732106]
[1749907612912,1.16647801,105030.0,105020.0,0.33732106]
[1749907614215,1.15695729,105030.0,105020.0,0.33732106]
[1749907614442,1.12655529,105040.0,105030.0,0.25068394]
[1749907614662,1.18932171,105040.0,105030.0,0.25068394]
[1749907614879,0.44084495,105040.0,105030.0,0.25068394]
[1749907615086,1.19884134,105040.0,105030.0,0.25068394]
[1749907615296,1.18932134,105040.0,105030.0,0.30340788]
[1749907615500,1.19884116,105040.0,105030.0,0.30340788]
[1749907615922,1.20836116,105040.0,105030.0,0.30340788]
[1749907616163,1.20836116,105040.0,105030.0,0.45828788]
[1749907616581,1.18551474,105040.0,105030.0,0.45828788]
[1749907616811,1.17599474,105040.0,105030.0,0.45928788]
[1749907617020,1.18551474,105040.0,105030.0,0.45928788]
[1749907617617,1.17599474,105040.0,105030.0,0.45928788]
[1749907617833,1.18551465,105040.0,105030.0,0.46028788]
[1749907618043,1.17599474,105040.0,105030.0,0.46028788]
[1749907618542,1.16647492,105040.0,105030.0,0.46028788]
[1749907619252,1.16647483,105040.0,105030.0,0.46028788]
[1749907619481,1.1569552,105040.0,105030.0,0.46028788]
[1749907619718,1.16647483,105040.0,105030.0,0.46028788]
[1749907620377,1.16647483,105040.0,105030.0,0.40756394]
[1749907620846,1.17599465,105040.0,105030.0,0.40756394]
[1749907622270,1.16647483,105040.0,105030.0,0.40756394]
[1749907622511,1.1569552,105040.0,105030.0,0.40756394]
[1749907622735,1.17599465,105040.0,105030.0,0.40756394]
[1749907624537,1.16647483,105040.0,105030.0,0.40756394]
[1749907624753,1.17599455,105040.0,105030.0,0.40756394]
[1749907625031,1.17599465,105040.0,105030.0,0.40756394]
[1749907625252,1.17599465,105040.0,105030.0,0.43997416]
[1749907625697,0.81695358,105050.0,105040.0,0.2513631]
[1749907625915,0.05895719,105050.0,105040.0,0.2513631]
[1749907626138,0.82647249,105050.0,105040.0,0.2513631]
[1749907626347,0.83599158,105050.0,105040.0,0.2513631]
[1749907626794,0.04943846,105050.0,105040.0,0.32589887]
[1749907627030,1.61186829,105060.0,105050.0,0.24182362]
[1749907627276,1.65178829,105060.0,105050.0,0.39666362]
[1749907627504,2.38123104,105060.0,105050.0,0.016]
[1749907627731,2.38123104,105060.0,105050.0,0.37074471]
[1749907627959,0.20942362,105050.0,105040.0,0.0354]
[1749907628184,0.96742001,105050.0,105040.0,0.016]
[1749907628403,0.96742001,105050.0,105040.0,9.084e-05]
[1749907628404,1.32382001,105050.0,105040.0,9.084e-05]
[1749907629066,1.47866001,105050.0,105040.0,9.084e-05]
[1749907629513,7.43739827,105050.0,105040.0,9.084e-05]
[1749907629739,7.53174695,105050.0,105040.0,9.084e-05]
[1749907629958,7.53174695,105050.0,105040.0,0.00209084]
[1749907630461,7.53174695,105050.0,105040.0,0.00309084]
[1749907630686,7.53174695,105050.0,105040.0,9.084e-05]
[1749907631117,7.48150664,105050.0,105040.0,9.084e-05]
[1749907631346,7.31302318,105050.0,105040.0,9.084e-05]
[1749907631565,7.31402318,105050.0,105040.0,9.084e-05]
[1749907631784,6.64026852,105050.0,105040.0,9.084e-05]
[1749907633402,6.60856852,105050.0,105040.0,9.084e-05]
[1749907633648,6.62856852,105050.0,105040.0,9.084e-05]
[1749907634836,5.65279125,105050.0,105040.0,9.084e-05]
[1749907635061,5.65279125,105050.0,105040.0,0.01609084]
[1749907635062,1.44273839,105050.0,105040.0,0.01609084]
[1749907641233,1.47130591,105050.0,105040.0,0.01609084]
[1749907644216,1.44273839,105050.0,105040.0,0.01609084]
[1749907648285,0.76898373,105050.0,105040.0,0.01609084]
[1749907648461,1.44273839,105050.0,105040.0,0.01609084]
[1749907651530,1.27433051,105050.0,105040.0,0.01609084]
[1749907651937,1.28384942,105050.0,105040.0,0.01609084]
[1749907653232,0.61009476,105050.0,105040.0,0.01609084]
[1749907653457,1.36790395,105050.0,105040.0,0.01609084]
[1749907653660,6.41790395,105050.0,105040.0,0.01609084]
[1749907659816,6.41790395,105050.0,105040.0,0.03139084]
[1749907661647,6.44647147,105050.0,105040.0,0.03139084]
[1749907663735,6.44647147,105050.0,105040.0,0.01609084]
[1749907668173,6.44647147,105050.0,105040.0,9.084e-05]
[1749907668376,6.44647147,105050.0,105040.0,0.01549084]
[1749907669197,6.48450418,105050.0,105040.0,0.01549084]
[1749907669602,7.42243683,105050.0,105040.0,9.084e-05]
[1749907670010,6.66462764,105050.0,105040.0,9.084e-05]
[1749907670234,6.69320266,105050.0,105040.0,0.01569084]
[1749907670857,5.82294425,105050.0,105040.0,0.01569084]
[1749907671071,5.66810425,105050.0,105040.0,0.01569084]
[1749907671286,6.58075344,105050.0,105040.0,0.01569084]
[1749907671510,6.58075344,105050.0,105040.0,0.03069084]
[1749907672138,6.34796073,105050.0,105040.0,0.03069084]
[1749907672349,1.48320182,105050.0,105040.0,0.22109449]
[1749907672573,1.48320182,105050.0,105040.0,0.03069084]
[1749907673016,1.38696006,105050.0,105040.0,0.03069084]
[1749907673247,1.38596006,105050.0,105040.0,0.03069084]
[1749907673465,1.38596006,105050.0,105040.0,0.03269084]
[1749907673889,1.38496006,105050.0,105040.0,0.03269084]
[1749907674363,1.38496006,105050.0,105040.0,0.03369084]
[1749907676060,1.35638504,105050.0,105040.0,0.03369084]
[1749907682361,1.45253426,105050.0,105040.0,0.03369084]
[1749907682601,1.45253426,105050.0,105040.0,0.01869084]
[1749907683041,6.53110928,105050.0,105040.0,0.01869084]
[1749907685734,6.43496006,105050.0,105040.0,0.01869084]
[1749907695504,6.43496006,105050.0,105040.0,0.03489084]
[1749907700965,6.43496006,105050.0,105040.0,0.01869084]
[1749907702189,6.43496006,105050.0,105040.0,0.03469084]
[1749907702414,6.43488006,105050.0,105040.0,0.03469084]
[1749907709718,6.43488006,105050.0,105040.0,0.01869084]
[1749907711421,6.43488006,105050.0,105040.0,0.03509084]
[1749907715216,6.53102928,105050.0,105040.0,0.03509084]
[1749907715846,6.53102928,105050.0,105040.0,0.01869084]
[1749907716544,6.53102928,105050.0,105040.0,0.03509084]
[1749907717371,6.43488006,105050.0,105040.0,0.03509084]
[1749907722692,6.47291277,105050.0,105040.0,0.03509084]
[1749907728813,6.43488006,105050.0,105040.0,0.03509084]
[1749907735475,6.24020006,105050.0,105040.0,0.03509084]
[1749907735695,6.43484006,105050.0,105040.0,0.03509084]
[1749907736365,5.53179005,105050.0,105040.0,0.27089397]
[1749907736593,0.07219875,105050.0,105040.0,0.28993323]
[1749907736816,0.80720792,105050.0,105040.0,0.28993323]
[1749907737068,1.1890454,105050.0,105040.0,0.28993323]
[1749907737293,1.16624529,105050.0,105040.0,0.28993323]
[1749907737736,0.35903719,105050.0,105040.0,0.28993323]
[1749907737978,1.13768919,105050.0,105040.0,0.28993323]
[1749907738199,1.14720774,105050.0,105040.0,0.28993323]
[1749907738448,1.1183595,105060.0,105050.0,0.25094226]
[1749907738677,0.83727514,105060.0,105050.0,0.25094226]
[1749907738901,1.18679332,105060.0,105050.0,0.25094226]
[1749907739126,1.19631159,105060.0,105050.0,0.25094226]
[1749907739870,1.17576128,105060.0,105050.0,0.25094226]
[1749907740303,1.18627992,105060.0,105050.0,0.25094226]
[1749907741243,0.41895236,105060.0,105050.0,0.25094226]
[1749907741475,0.42805493,105060.0,105050.0,0.30924997]
[1749907741698,1.18586412,105060.0,105050.0,0.31124997]
[1749907741939,1.18586402,105060.0,105050.0,0.31224997]
[1749907742594,1.19538239,105060.0,105050.0,0.31224997]
[1749907742958,1.19538239,105060.0,105050.0,0.25394226]
[1749907743724,1.37623197,105060.0,105050.0,0.24442362]
[1749907743925,1.36671388,105060.0,105050.0,0.24442362]
[1749907747026,1.36671388,105060.0,105050.0,0.25394244]
[1749907748176,1.17634648,105060.0,105050.0,0.26346117]
[1749907749026,1.17634648,105060.0,105050.0,0.32206881]
[1749907749226,1.17634648,105060.0,105050.0,0.33158745]
[1749907749488,1.16682721,105060.0,105050.0,0.33158745]
[1749907749697,1.16624274,105060.0,105050.0,0.33158745]
[1749907749910,1.16624274,105060.0,105050.0,0.27297981]
[1749907750118,1.10732683,105060.0,105050.0,0.27297981]
[1749907750291,0.81672474,105060.0,105050.0,0.27297981]
[1749907750497,0.81672465,105060.0,105050.0,0.27297981]
[1749907750691,0.81672465,105060.0,105050.0,0.36912903]
[1749907751499,0.82624265,105060.0,105050.0,0.36912903]
[1749907751674,0.81672465,105060.0,105050.0,0.36912903]
[1749907752293,0.81672465,105060.0,105050.0,0.52384903]
[1749907752969,0.81672456,105060.0,105050.0,0.52384903]
[1749907753795,0.82624256,105060.0,105050.0,0.52384903]
[1749907754006,0.81672456,105060.0,105050.0,0.52384903]
[1749907754211,0.82624247,105060.0,105050.0,0.52384903]
[1749907755089,0.82624247,105060.0,105050.0,0.42769981]
[1749907755297,0.81672456,105060.0,105050.0,0.42769981]
[1749907755523,0.82624256,105060.0,105050.0,0.42769981]
[1749907755737,0.83576065,105060.0,105050.0,0.42769981]
[1749907756155,0.84527892,105060.0,105050.0,0.42769981]
[1749907756360,0.84527883,105060.0,105050.0,0.42769981]
[1749907759609,0.82624256,105060.0,105050.0,0.42769981]
[1749907760284,0.83576065,105060.0,105050.0,0.42769981]
[1749907763180,0.83576056,105060.0,105050.0,0.42769981]
[1749907766452,0.82624247,105060.0,105050.0,0.42769981]
[1749907767361,0.83576056,105060.0,105050.0,0.42769981]
[1749907767570,0.82624247,105060.0,105050.0,0.42769981]
[1749907768002,0.83576056,105060.0,105050.0,0.42769981]
[1749907768205,0.82624247,105060.0,105050.0,0.42769981]
[1749907769077,0.83576056,105060.0,105050.0,0.42769981]
[1749907770212,0.83576056,105060.0,105050.0,0.27297981]
[1749907770506,0.84527874,105060.0,105050.0,0.42765981]
[1749907770716,1.60308793,105060.0,105050.0,0.42765981]
[1749907770920,0.84527874,105060.0,105050.0,0.42765981]
[1749907771334,0.83576056,105060.0,105050.0,0.42765981]
[1749907771758,2.37213127,105060.0,105050.0,0.003]
[1749907771990,7.34882589,105060.0,105050.0,0.003]
[1749907772215,7.45676765,105060.0,105050.0,0.003]
[1749907772645,7.44506765,105060.0,105050.0,0.003]
[1749907775242,2.37866765,105060.0,105050.0,0.0186]
[1749907786322,2.39416765,105060.0,105050.0,0.0186]
[1749907786559,2.39416765,105060.0,105050.0,0.003]
[1749907786977,7.44416765,105060.0,105050.0,0.003]
[1749907787416,7.54031687,105060.0,105050.0,0.003]
[1749907787838,7.44416765,105060.0,105050.0,0.003]
[1749907790922,7.42866765,105060.0,105050.0,0.003]
[1749907791788,7.42866765,105060.0,105050.0,0.0193]
[1749907793844,7.44376765,105060.0,105050.0,0.0193]
[1749907796698,7.42866765,105060.0,105050.0,0.0193]
[1749907797996,7.42866765,105060.0,105050.0,0.035]
[1749907798866,7.42866765,105060.0,105050.0,0.0193]
[1749907801480,7.45724267,105060.0,105050.0,0.0193]
[1749907802387,2.40724267,105060.0,105050.0,0.04660934]
[1749907802605,2.37866765,105060.0,105050.0,0.0345]
[1749907802828,2.40724267,105060.0,105050.0,0.0193]
[1749907803048,7.47374267,105060.0,105050.0,0.003]
[1749907803271,7.6196246,105060.0,105050.0,0.003]
[1749907803497,7.6079246,105060.0,105050.0,0.003]
[1749907805677,7.56989189,105060.0,105050.0,0.003]
[1749907806133,7.47374267,105060.0,105050.0,0.003]
[1749907807005,7.51177538,105060.0,105050.0,0.003]
[1749907807436,7.52631623,105060.0,105050.0,0.003]
[1749907809183,7.52629437,105060.0,105050.0,0.003]
[1749907809387,7.47489737,105060.0,105050.0,0.003]
[1749907809601,7.57104659,105060.0,105050.0,0.003]
[1749907810030,7.62244338,105060.0,105050.0,0.003]
[1749907810470,7.57104659,105060.0,105050.0,0.003]
[1749907810690,7.62244366,105060.0,105050.0,0.003]
[1749907813753,8.65200831,105060.0,105050.0,0.003]
[1749907813979,7.89419912,105060.0,105050.0,0.003]
[1749907814261,7.90959012,105060.0,105050.0,0.003]
[1749907814698,7.90959012,105060.0,105040.0,9.084e-05]
[1749907814699,0.57990462,105050.0,105040.0,9.084e-05]
[1749907814911,6.75775881,105050.0,105040.0,9.084e-05]
[1749907816073,7.47886854,105050.0,105040.0,9.084e-05]
[1749907816308,7.52860125,105050.0,105040.0,0.00209084]
[1749907816967,7.52860125,105050.0,105040.0,0.00309084]
[1749907817408,7.51690125,105050.0,105040.0,0.00309084]
[1749907817629,7.47886854,105050.0,105040.0,0.00309084]
[1749907817836,7.61305047,105050.0,105040.0,0.00309084]
[1749907820678,7.61305047,105050.0,105040.0,0.00209084]
[1749907820889,7.61405047,105050.0,105040.0,9.084e-05]
[1749907821116,2.56405047,105050.0,105040.0,9.084e-05]
[1749907821349,7.61405047,105050.0,105040.0,9.084e-05]
[1749907823678,7.92833047,105050.0,105040.0,9.084e-05]
[1749907826227,2.87833047,105050.0,105040.0,9.084e-05]
[1749907826471,7.92833047,105050.0,105040.0,9.084e-05]
[1749907827840,7.89979068,105050.0,105040.0,9.084e-05]
[1749907828280,7.80364146,105050.0,105040.0,9.084e-05]
[1749907831570,2.75364146,105050.0,105040.0,9.084e-05]
[1749907831808,7.80364146,105050.0,105040.0,9.084e-05]
[1749907835533,7.78714146,105050.0,105040.0,0.01579084]
[1749907835743,2.79419531,105050.0,105040.0,0.01579084]
[1749907835953,7.78714146,105050.0,105040.0,0.01579084]
[1749907836160,7.88329068,105050.0,105040.0,0.01579084]
[1749907837769,7.94034453,105050.0,105040.0,0.01579084]
[1749907843653,7.70775182,105050.0,105040.0,0.01579084]
[1749907843813,7.90231182,105050.0,105040.0,0.01579084]
[1749907844226,7.8061626,105050.0,105040.0,0.01579084]
[1749907844431,7.6116026,105050.0,105040.0,0.03109084]
[1749907844633,7.03189646,105050.0,105040.0,0.03109084]
[1749907844841,6.97484261,105050.0,105040.0,0.03109084]
[1749907845059,7.02340447,105050.0,105040.0,0.03109084]
[1749907845931,7.00340447,105050.0,105040.0,0.03109084]
[1749907847129,7.09955369,105050.0,105040.0,0.03109084]
[1749907848687,7.00340447,105050.0,105040.0,0.03109084]
[1749907849108,6.53444527,105050.0,105040.0,0.03109084]
[1749907849312,6.72900527,105050.0,105040.0,0.03109084]
[1749907849521,6.49636137,105050.0,105040.0,0.03109084]
[1749907849702,0.60182942,105050.0,105040.0,0.22149449]
[1749907849912,1.38043901,105050.0,105040.0,0.24053467]
[1749907850124,1.33108001,105050.0,105040.0,0.24053467]
[1749907850358,1.03092001,105050.0,105040.0,0.29600588]
[1749907850567,0.81768647,105050.0,105040.0,0.25957393]
[1749907850773,1.14816774,105050.0,105040.0,0.25957393]
[1749907850987,1.10832774,105050.0,105040.0,0.25957393]
[1749907851209,0.81768647,105050.0,105040.0,0.25957393]
[1749907851420,0.80816774,105050.0,105040.0,0.35572315]
[1749907851627,0.05987719,105050.0,105040.0,0.25957393]
[1749907851834,0.05035855,105050.0,105040.0,0.25957393]
[1749907852059,0.79864919,105050.0,105040.0,0.25957393]
[1749907852287,0.04084,105050.0,105040.0,0.25957393]
[1749907852538,0.001,105050.0,105040.0,0.25957393]
[1749907852778,0.001,105050.0,105040.0,1.2097741]
[1749907853030,0.17010041,105070.0,105060.0,0.2189214]
[1749907853268,1.32678353,105070.0,105060.0,0.2510214]
[1749907853493,0.57849162,105070.0,105060.0,0.2510214]
[1749907853708,1.24207565,105070.0,105060.0,0.2510214]
[1749907853921,1.25159293,105070.0,105060.0,0.24150367]
[1749907854167,1.25159293,105070.0,105060.0,0.26053922]
[1749907854377,1.24207565,105070.0,105060.0,0.26053922]
[1749907854587,1.24207565,105070.0,105060.0,0.26453922]
[1749907854792,0.56897434,105070.0,105060.0,0.26453922]
[1749907854998,1.24207565,105070.0,105060.0,0.26453922]
[1749907855617,1.24207565,105070.0,105060.0,0.26653922]